bitfinex-derivatives/quotes_BNBF0:USTF0_20250331
["timestamp","ask_amount","ask_price","bid_price","bid_amount"]
[1743411547538,6.27664483,592.11,592.05,0.76]
[1743411547733,6.27664483,592.1,592.05,0.76]
[1743411547933,5.76983634,592.09,592.05,0.76]
[1743411548137,5.76983634,592.08,592.05,0.76]
[1743411548336,0.8467425,592.07,592.05,0.76]
[1743411548534,0.84305371,592.06,592.05,0.76]
[1743411548734,2.92398622,592.09,592.05,0.76]
[1743411548940,0.29400956,592.07,592.05,0.76]
[1743411549141,1.96832574,592.06,592.05,0.76]
[1743411549340,1.1252902,592.06,592.05,0.76]
[1743411549736,0.84259271,592.06,592.05,0.76]
[1743411549937,0.29400956,592.07,592.05,0.76]
[1743411550436,2.20811398,592.06,592.05,0.76]
[1743411550639,3.30433378,592.06,592.05,0.76]
[1743411550940,1.93843559,592.06,592.05,0.76]
[1743411551142,1.0962198,592.06,592.05,0.76]
[1743411551340,0.29400956,592.07,592.05,0.76]
[1743411551835,0.84189319,592.06,592.05,0.76]
[1743411552036,0.29400956,592.07,592.05,0.76]
[1743411552841,2.20666874,592.06,592.05,0.76]
[1743411553137,3.30215757,592.06,592.05,0.76]
[1743411556642,3.30035531,592.06,592.05,0.76]
[1743411557938,3.59439095,592.06,592.05,0.76]
[1743411558241,6.68977706,592.06,592.05,0.76]
[1743411558446,6.68672722,592.06,592.05,0.76]
[1743411558842,4.93577394,592.06,592.05,0.76]
[1743411559045,4.93583283,592.06,592.05,0.76]
[1743411559647,6.68678611,592.06,592.05,0.76]
[1743411560039,4.93583283,592.06,592.05,0.76]
[1743411560241,3.59104386,592.06,592.05,0.76]
[1743411560641,3.29700822,592.06,592.05,0.76]
[1743411561244,3.29685634,592.06,592.05,0.76]
[1743411562043,3.59089446,592.06,590.88,0.921]
[1743411562249,2.20136751,592.05,590.89,0.61330544]
[1743411562444,2.20136751,592.04,590.9,0.61329971]
[1743411562650,2.20098814,592.03,590.91,0.27483297]
[1743411562847,2.20098814,592.02,590.91,0.27483297]
[1743411563050,0.83950247,592.01,590.92,0.29418478]
[1743411563247,0.83950247,592.0,590.93,0.27483297]
[1743411563448,0.83950247,591.99,590.94,0.33844383]
[1743411563646,1.09548883,591.99,590.95,0.27483297]
[1743411563844,1.09548883,591.99,590.96,0.33843238]
[1743411564051,1.09548883,591.99,590.97,0.27483297]
[1743411564251,3.09404705,592.09,590.98,0.33842092]
[1743411564448,2.20100521,592.08,590.99,0.27483297]
[1743411564648,0.83946003,592.07,591.0,0.33840947]
[1743411564847,0.83946003,592.06,591.01,0.27483297]
[1743411565153,0.29414251,592.07,591.01,0.27483297]
[1743411565352,0.29414251,592.07,591.02,0.77]
[1743411565552,0.29414251,592.07,591.03,0.27483297]
[1743411565848,0.29414251,592.07,591.05,0.33838084]
[1743411566049,0.29414251,592.07,591.06,0.27483297]
[1743411566254,0.29414251,592.07,591.07,0.33836939]
[1743411566448,0.29414251,592.07,591.08,0.27483297]
[1743411566652,3.09419698,592.17,591.09,0.33835794]
[1743411566847,3.54485402,592.16,591.1,0.27483297]
[1743411567154,3.29464848,592.15,591.11,0.3383465]
[1743411567349,1.09303816,592.15,591.12,0.27483297]
[1743411567554,1.09303816,592.15,591.13,0.33833505]
[1743411567852,1.09303816,592.15,591.14,0.27483297]
[1743411568049,0.29409279,592.14,591.15,0.3383236]
[1743411568254,0.29409279,592.14,591.16,0.27483297]
[1743411568453,0.29409279,592.14,591.17,0.33831216]
[1743411568656,0.29409279,592.14,591.18,0.27483297]
[1743411568953,0.29409279,592.14,591.19,0.33830071]
[1743411569155,0.29409279,592.14,591.2,0.27483297]
[1743411569449,0.29409279,592.14,591.21,0.33828927]
[1743411569756,0.29409279,592.14,591.22,0.27483297]
[1743411569952,0.29409279,592.14,591.23,0.33827782]
[1743411570149,0.29409279,592.14,591.24,0.27477839]
[1743411572053,0.29409279,592.14,591.25,0.33826638]
[1743411572251,0.29409279,592.14,591.26,0.27477839]
[1743411572455,0.29409279,592.14,591.26,0.61303905]
[1743411572657,3.54778279,592.3,591.27,0.27477839]
[1743411572856,2.20341861,592.29,591.27,0.27477839]
[1743411573059,3.29707897,592.28,591.27,0.27477839]
[1743411573361,3.29707897,592.27,591.26,0.33826066]
[1743411573659,2.20341861,592.26,591.27,0.27476928]
[1743411573852,0.84151408,592.25,591.27,0.27476928]
[1743411574055,1.93517444,592.24,591.27,0.27476928]
[1743411574254,0.84151408,592.23,591.27,0.27476928]
[1743411574458,1.93517444,592.22,591.27,0.27476928]
[1743411574756,0.84151408,592.21,591.27,0.27476928]
[1743411574957,0.84151408,592.2,591.27,0.27476928]
[1743411575258,0.84151408,592.19,591.27,0.27476928]
[1743411575460,2.20643872,592.18,591.27,0.27476928]
[1743411575660,2.20643872,592.17,591.27,0.27476928]
[1743411575861,3.55334445,592.16,591.27,0.27476928]
[1743411576054,4.64700481,592.15,591.27,0.27476928]
[1743411576256,5.737239,592.14,591.27,0.27476928]
[1743411576457,5.737239,592.13,591.27,0.27476928]
[1743411576661,5.737239,592.12,591.27,0.27476928]
[1743411576861,3.55334445,592.11,591.27,0.27476928]
[1743411577162,3.30009908,592.1,591.27,0.27476928]
[1743411577362,2.20643872,592.09,591.27,0.27476928]
[1743411577557,0.84151408,592.08,591.27,0.27476928]
[1743411577764,1.93579242,592.07,591.27,0.27476928]
[1743411577959,0.84213206,592.06,591.27,0.27476928]
[1743411578265,3.3015381,592.05,591.08,0.878]
[1743411578459,2.20787774,592.04,591.09,0.27496767]
[1743411578657,2.20787774,592.03,591.09,0.27496767]
[1743411578859,2.20787774,592.02,591.09,0.27496767]
[1743411579061,2.20787774,592.01,591.09,0.27496767]
[1743411579270,0.84213206,592.0,591.09,0.27496767]
[1743411579464,0.84213206,591.99,591.09,0.27496767]
[1743411579665,0.84213206,591.98,591.09,0.27496767]
[1743411579870,0.84213206,591.97,591.09,0.27496767]
[1743411580069,0.84213206,591.96,591.09,0.27496767]
[1743411580270,0.84213206,591.95,591.09,0.27496767]
[1743411580470,0.84213206,591.94,591.09,0.27496767]
[1743411580665,2.20787774,591.93,591.09,0.27496767]
[1743411580865,2.20787774,591.92,591.09,0.27496767]
[1743411581064,2.20787774,591.91,591.09,0.27496767]
[1743411581270,2.20787774,591.9,591.09,0.27496767]
[1743411581466,0.84213206,591.89,591.09,0.27496767]
[1743411581671,0.84213206,591.88,591.09,0.27496767]
[1743411581866,0.84213206,591.87,591.09,0.27496767]
[1743411582066,0.29424945,591.88,591.09,0.27496767]
[1743411583273,0.84213206,591.87,591.09,0.27496767]
[1743411583464,0.84213206,591.86,591.09,0.27496767]
[1743411583669,0.84213206,591.85,591.09,0.27496767]
[1743411583863,0.29424945,591.88,591.09,0.27496767]
[1743411584071,2.21085923,591.87,591.1,0.27492616]
[1743411584370,0.29424945,591.88,591.11,0.27492616]
[1743411584567,0.29424945,591.88,591.09,0.27492616]
[1743411584765,0.84367515,591.87,591.12,0.27492616]
[1743411584969,0.29424945,591.88,591.13,0.27492616]
[1743411585266,0.29424945,591.88,591.14,0.27492616]
[1743411585466,1.09366036,591.87,591.03,0.27492616]
[1743411585972,0.29424945,591.88,591.03,0.27492616]
[1743411586171,0.84413193,591.87,591.03,0.27492616]
[1743411586372,1.09938003,591.86,591.03,0.27492616]
[1743411587271,0.771,591.85,591.03,0.27492616]
[1743411588573,0.771,591.85,591.04,0.61331273]
[1743411588875,0.771,591.85,591.05,0.27492616]
[1743411589473,0.771,591.85,591.06,0.61330128]
[1743411589667,0.771,591.85,591.07,0.61329555]
[1743411589966,0.771,591.85,591.08,0.61328983]
[1743411590167,0.771,591.85,591.09,0.6132841]
[1743411590369,0.771,591.85,591.1,0.61327838]
[1743411590668,0.771,591.85,591.11,0.27492616]
[1743411591170,0.771,591.85,591.12,0.27487535]
[1743411591372,0.771,591.85,591.1,0.33835222]
[1743411591373,0.771,591.85,591.11,0.27487535]
[1743411591568,0.29420716,591.84,591.12,0.27487535]
[1743411591768,0.29420716,591.84,591.11,0.27487535]
[1743411591972,0.29420716,591.84,591.12,0.27487535]
[1743411592169,0.29420716,591.84,591.1,0.33835222]
[1743411592170,0.29420716,591.84,591.11,0.27487535]
[1743411592369,0.29420716,591.84,591.12,0.27487535]
[1743411592575,0.29420716,591.84,591.11,0.27487535]
[1743411592770,0.29420716,591.84,591.12,0.27487535]
[1743411592969,0.29420716,591.84,591.11,0.27487535]
[1743411593272,0.29420716,591.84,591.12,0.27487535]
[1743411593474,0.29420716,591.84,591.11,0.27487535]
[1743411593775,0.771,591.85,591.12,0.27487535]
[1743411594075,0.29419473,591.83,591.13,0.27487535]
[1743411594374,0.29419473,591.83,591.1,0.33835222]
[1743411594375,0.29419473,591.83,591.14,0.27487535]
[1743411594572,0.29419473,591.83,591.11,0.27487535]
[1743411596273,0.29419473,591.83,591.1,0.33835222]
[1743411596575,0.29419473,591.83,591.11,0.27488683]
[1743411596778,1.21219473,591.83,591.11,0.27488683]
[1743411597170,1.21219473,591.83,591.1,0.33835222]
[1743411597375,1.21219473,591.83,591.12,0.27487819]
[1743411597575,1.21219473,591.83,591.11,0.27487819]
[1743411597775,1.21219473,591.83,591.12,0.27487819]
[1743411597977,1.21219473,591.83,591.11,0.27487819]
[1743411598273,1.21219473,591.83,591.12,0.2748846]
[1743411598474,1.21219473,591.83,591.13,0.2748846]
[1743411598675,1.21219473,591.83,591.14,0.2748846]
[1743411598972,1.21219473,591.83,591.15,0.2748846]
[1743411599175,1.21219473,591.83,591.16,0.2748846]
[1743411599476,1.21219473,591.83,591.17,0.2748846]
[1743411599677,0.918,591.83,591.16,0.2748846]
[1743411599877,0.918,591.83,591.15,0.828]
[1743411600177,0.918,591.83,591.16,0.2748504]
[1743411600772,0.918,591.83,591.17,0.2748504]
[1743411600973,0.918,591.83,591.18,0.2748504]
[1743411601375,0.918,591.83,591.19,0.2748504]
[1743411601577,0.918,591.83,591.2,0.2748504]
[1743411601774,0.918,591.83,591.21,0.2748504]
[1743411601980,0.918,591.83,591.22,0.2748504]
[1743411602280,0.918,591.83,591.23,0.2748504]
[1743411602679,0.918,591.83,591.24,0.2748504]
[1743411602877,0.918,591.83,591.16,0.2748504]
[1743411606286,0.918,591.83,591.15,0.828]
[1743411606488,3.34725819,591.82,591.15,0.828]
[1743411606686,2.23675034,591.81,591.15,0.828]
[1743411606886,1.1105128,591.82,591.15,0.828]
[1743411607183,3.34719247,591.81,591.15,0.828]
[1743411607384,0.85308561,591.8,591.15,0.828]
[1743411607580,1.1105128,591.81,591.15,0.828]
[1743411607785,1.1105128,591.79,591.15,0.828]
[1743411608681,1.1105128,591.78,591.15,0.828]
[1743411608987,1.1105128,591.78,591.16,0.27491463]
[1743411609386,1.1105128,591.77,591.16,0.27491463]
[1743411609785,0.918,591.83,591.16,0.27491463]
[1743411609987,0.29421338,591.76,591.15,0.828]
[1743411610186,0.29421338,591.76,591.16,0.27491487]
[1743411610386,0.918,591.83,591.16,0.27491487]
[1743411610585,2.2355069,591.82,591.16,0.27491487]
[1743411610795,0.85263939,591.81,591.16,0.27491487]
[1743411610990,0.918,591.83,591.16,0.27491487]
[1743411611184,1.10988773,591.8,591.16,0.27491487]
[1743411611591,0.29420965,591.79,591.15,0.828]
[1743411611791,1.40409738,591.79,591.16,0.27491462]
[1743411612387,0.29420965,591.79,591.16,0.27491462]
[1743411614789,0.918,591.83,591.16,0.27491462]
[1743411615995,0.29420592,591.82,591.16,0.27491462]
[1743411617293,0.29420592,591.82,591.17,0.27493687]
[1743411617496,2.2359038,591.81,591.16,0.27493687]
[1743411617686,0.29420592,591.82,591.15,0.964]
[1743411617687,2.2359038,591.8,591.17,0.27493687]
[1743411617893,1.10965066,591.8,591.16,0.27493687]
[1743411618194,1.10965066,591.8,591.17,0.27493687]
[1743411618395,1.10965066,591.79,591.15,0.964]
[1743411618594,0.957,591.78,591.16,0.27496136]
[1743411618789,1.936,591.78,591.16,0.27496136]
[1743411618993,1.10965066,591.77,591.16,0.27496136]
[1743411619192,1.10965066,591.77,591.17,0.27497879]
[1743411619387,1.10965066,591.77,591.16,0.27497879]
[1743411619590,1.10965066,591.76,591.16,0.27497879]
[1743411619999,1.10965066,591.76,591.17,0.2749819]
[1743411620193,1.10965066,591.75,591.16,1.3649819]
[1743411620389,1.10965066,591.75,591.16,1.09]
[1743411620592,1.10965066,591.75,591.17,0.27494953]
[1743411620792,1.936,591.78,591.17,0.27494953]
[1743411620993,2.23486472,591.77,591.17,0.27494953]
[1743411621196,1.936,591.78,591.17,0.27494953]
[1743411621392,0.85227055,591.77,591.17,0.27494953]
[1743411621596,1.936,591.78,591.17,0.27494953]
[1743411621790,2.23446259,591.77,591.17,0.27494953]
[1743411622097,1.936,591.78,591.17,0.27494953]
[1743411622291,1.10965066,591.76,591.17,0.27494953]
[1743411622897,1.936,591.78,591.18,0.27494083]
[1743411623090,1.936,591.78,591.17,0.27494083]
[1743411623689,1.1092645,591.77,591.17,0.27494083]
[1743411624401,1.96137562,591.76,591.17,0.27494083]
[1743411624696,2.23392236,591.75,591.17,0.27494083]
[1743411624990,1.1092645,591.74,591.17,0.27494083]
[1743411625195,1.1092645,591.74,591.18,0.27494927]
[1743411625396,1.936,591.78,591.16,1.09]
[1743411625397,1.10903989,591.73,591.17,0.27494927]
[1743411625596,1.10903989,591.73,591.18,0.27494927]
[1743411625793,1.10903989,591.73,591.19,0.27494927]
[1743411625997,1.10903989,591.73,591.17,0.27494927]
[1743411626190,0.957,591.78,591.18,0.27494927]
[1743411626394,0.29424199,591.72,591.19,0.27495852]
[1743411626597,2.2335395,591.71,591.17,0.27495852]
[1743411626796,2.2335395,591.7,591.18,0.27495852]
[1743411626995,5.11678852,591.69,591.17,0.27495852]
[1743411627198,2.2335395,591.68,591.18,0.27495852]
[1743411627398,2.2335395,591.67,591.18,0.27495852]
[1743411627701,3.34253573,591.66,591.16,1.09]
[1743411627996,2.2335395,591.65,591.16,1.09]
[1743411628296,2.2335395,591.64,591.16,1.09]
[1743411628495,2.2335395,591.63,591.17,0.27500728]
[1743411628697,2.2335395,591.62,591.17,0.27500728]
[1743411629000,2.49054878,591.61,591.18,0.27500839]
[1743411629194,2.49054878,591.61,591.19,0.27500839]
[1743411629195,1.10899623,591.61,591.19,0.27500839]
[1743411629396,1.10899623,591.61,591.16,0.27500839]
[1743411629599,1.10899623,591.61,591.17,0.27500839]
[1743411629799,1.10899623,591.69,591.16,0.27500839]
[1743411629999,1.10899623,591.69,591.17,0.27500782]
[1743411630197,1.10899623,591.68,591.18,0.27500782]
[1743411630498,1.10899623,591.68,591.19,0.27500782]
[1743411630697,1.10899623,591.68,591.16,0.27500782]
[1743411631002,0.29424199,591.72,591.17,0.27500122]
[1743411631204,3.34323188,591.71,591.16,0.27500122]
[1743411631503,1.10923608,591.71,591.17,0.27500122]
[1743411631897,1.10923608,591.7,591.18,0.27500509]
[1743411632095,1.10923608,591.7,591.19,0.27500509]
[1743411632299,1.10923608,591.69,591.2,0.27500509]
[1743411632497,1.10923608,591.69,591.16,0.27500509]
[1743411632697,1.10923608,591.69,591.17,0.27500509]
[1743411632897,1.10923608,591.69,591.18,0.27500509]
[1743411633100,3.57438882,591.86,591.16,0.27500509]
[1743411633302,5.80921786,591.85,591.17,0.27500509]
[1743411633503,5.80921786,591.84,591.15,0.964]
[1743411633703,5.80921786,591.83,591.16,0.27500562]
[1743411633897,5.80921786,591.82,591.16,0.27500562]
[1743411634101,5.80921786,591.81,591.16,0.27500562]
[1743411634303,5.80921786,591.8,591.16,0.27500562]
[1743411634499,2.88416464,591.81,591.15,0.964]
[1743411634698,2.88416464,591.81,590.44,0.938]
[1743411634905,0.29425443,591.83,590.46,0.33871896]
[1743411635198,2.23617585,592.05,590.46,0.33871896]
[1743411635402,2.23617585,592.04,590.47,0.27484912]
[1743411635597,0.29422457,591.92,590.49,0.33870175]
[1743411635804,1.11068814,592.04,590.5,0.27484912]
[1743411636003,2.23751692,592.03,590.52,0.33868454]
[1743411636200,6.32391537,592.02,590.53,0.27484912]
[1743411636404,6.32391537,592.01,590.55,0.33866734]
[1743411636603,6.32391537,592.0,590.56,0.27484912]
[1743411636804,6.32391537,591.99,590.58,0.33865014]
[1743411637003,6.32391537,591.98,590.59,0.27487869]
[1743411637205,5.81710692,591.97,590.61,0.33863293]
[1743411637404,5.81710692,591.96,590.62,0.27487869]
[1743411637602,5.81710692,591.95,590.64,0.33861573]
[1743411637808,2.21858335,591.94,590.65,0.27487869]
[1743411638006,8.70275061,591.93,590.67,0.33859854]
[1743411638200,5.81745696,591.92,590.68,0.27487869]
[1743411638401,8.70275061,591.91,590.7,0.33858134]
[1743411638602,5.81745696,591.9,590.71,0.27487869]
[1743411638804,2.23757518,591.89,590.73,0.33856414]
[1743411639002,2.23757518,591.88,590.74,0.27487869]
[1743411639208,2.23757518,591.87,590.75,0.27487869]
[1743411639402,2.23757518,591.86,590.76,0.27487869]
[1743411639603,6.92833935,591.85,590.77,0.27487869]
[1743411639804,5.81793999,591.84,590.78,0.27487869]
[1743411640008,5.81793999,591.83,590.79,0.27487869]
[1743411640209,6.32492147,591.82,590.8,0.27487869]
[1743411640508,5.81793999,591.81,590.81,0.27487869]
[1743411640707,5.81793999,591.8,590.82,0.27487869]
[1743411640903,2.2376559,591.79,590.83,0.61338553]
[1743411641103,3.34834404,591.78,590.84,0.27487869]
[1743411641306,2.2376559,591.77,590.84,0.27487869]
[1743411641502,2.2376559,591.76,590.84,0.27487869]
[1743411641703,0.85334515,591.75,590.85,0.33849538]
[1743411641902,1.11068814,591.75,590.86,0.27487869]
[1743411642108,1.40495003,591.75,590.87,0.33848393]
[1743411642309,1.40495003,591.75,590.88,0.27487869]
[1743411642506,1.11068814,591.74,590.89,0.33847247]
[1743411642807,1.11068814,591.74,590.9,0.27487869]
[1743411643005,1.11068814,591.74,590.91,0.6133397]
[1743411643203,1.11068814,591.74,590.69,0.29426189]
[1743411643204,1.11068814,591.74,590.92,0.61333398]
[1743411643408,0.29422955,591.83,590.93,0.61332825]
[1743411643603,0.29422955,591.83,590.94,0.61332252]
[1743411643803,0.29422955,591.83,590.95,0.61331679]
[1743411644009,0.29422955,591.83,590.96,0.27487869]
[1743411644312,5.81832218,592.1,590.97,0.27487869]
[1743411644507,0.29416986,591.93,590.98,0.27487869]
[1743411644810,5.8180504,592.08,590.99,0.61329389]
[1743411645012,5.8180504,592.08,590.69,0.29426189]
[1743411645013,0.2941537,591.93,591.0,0.61328816]
[1743411645214,0.2941537,591.93,591.01,0.61328243]
[1743411645405,1.38402414,592.05,591.02,0.61327671]
[1743411645712,0.29415991,591.92,591.03,0.61327098]
[1743411645912,2.23734204,592.03,591.04,0.61326526]
[1743411646209,0.29415991,591.91,591.05,0.61325953]
[1743411646408,0.29415991,591.91,591.06,0.61325381]
[1743411646712,2.23734204,592.0,591.07,0.61324808]
[1743411646913,0.29415991,591.9,591.08,0.61324236]
[1743411647114,0.29415991,591.9,591.09,0.61323663]
[1743411647312,5.81734469,592.31,591.1,0.61323091]
[1743411647513,0.29415991,591.89,591.11,0.27487869]
[1743411648013,6.32412004,592.28,591.11,0.27487869]
[1743411648207,6.32412004,592.27,591.11,0.27487869]
[1743411648415,9.21219469,592.26,591.11,0.27487869]
[1743411648613,6.32412004,592.25,591.11,0.27487869]
[1743411648813,6.32412004,592.24,591.11,0.27487869]
[1743411649017,6.32412004,592.23,591.11,0.27487869]
[1743411649210,6.32412004,592.22,591.11,0.27487869]
[1743411649410,6.32412004,592.21,591.11,0.27487869]
[1743411649611,6.32412004,592.2,591.11,0.27487869]
[1743411649807,6.32412004,592.19,591.11,0.27487869]
[1743411650010,6.32412004,592.18,591.11,0.27487869]
[1743411650208,6.32412004,592.17,591.11,0.27487869]
[1743411650415,6.32412004,592.16,591.11,0.27487869]
[1743411650716,8.70541934,592.15,591.11,0.27487869]
[1743411650909,5.81734469,592.14,591.11,0.27487869]
[1743411651111,5.81734469,592.13,591.11,0.27487869]
[1743411651312,5.81734469,592.12,591.11,0.27487869]
[1743411651518,5.81734469,592.11,591.11,0.27487869]
[1743411651811,5.12569643,592.1,591.12,0.33834077]
[1743411652014,2.23762178,592.09,591.13,0.27487869]
[1743411652217,2.23762178,592.08,591.13,0.27487869]
[1743411652415,2.23762178,592.07,591.13,0.27487869]
[1743411652615,2.23762178,592.06,591.13,0.27487869]
[1743411652815,2.23762178,592.05,591.12,0.33834077]
[1743411653115,3.34850095,592.04,591.13,0.27483201]
[1743411653315,2.23719741,592.03,591.13,0.27483201]
[1743411653515,5.81699144,592.02,591.13,0.27483201]
[1743411653715,6.32391467,592.01,591.13,0.27483201]
[1743411653911,6.32391467,592.0,591.13,0.27483201]
[1743411654115,6.32391467,591.99,591.13,0.27483201]
[1743411654318,6.32391467,591.98,591.13,0.27483201]
[1743411654613,5.81699144,591.97,591.13,0.27483201]
[1743411654818,5.81699144,591.96,591.13,0.27483201]
[1743411655119,5.81699144,591.95,591.13,0.27483201]
[1743411655319,5.81699144,591.94,590.97,0.27483201]
[1743411655616,8.70508973,591.93,590.98,0.27483201]
[1743411655817,5.81699144,591.92,590.97,0.27483201]
[1743411656011,5.81699144,591.91,590.98,0.27483201]
[1743411656211,8.70508973,591.9,590.97,0.27483201]
[1743411656414,5.81699144,591.89,590.98,0.27483201]
[1743411656616,2.23695642,591.88,590.97,0.27483201]
[1743411656820,2.23695642,591.87,590.98,0.27483201]
[1743411657010,1.38369312,591.86,590.97,0.27483201]
[1743411657215,2.2368284,591.85,590.98,0.27483201]
[1743411657511,3.34755076,591.84,590.99,0.27483201]
[1743411657810,0.85313528,591.83,591.0,0.27483201]
[1743411658013,1.11072236,591.83,591.0,0.27483201]
[1743411658215,1.11072236,591.83,591.01,0.27483201]
[1743411658513,1.11072236,591.82,591.02,0.61333716]
[1743411658712,1.11072236,591.82,591.03,0.61333143]
[1743411658915,1.11072236,591.82,591.04,0.61332571]
[1743411659212,2.23758398,591.98,591.05,0.61331998]
[1743411659515,2.23758398,591.97,591.06,0.27493914]
[1743411659715,3.34830634,591.96,591.06,0.27493914]
[1743411659912,0.85341947,591.95,591.06,0.27493914]
[1743411660118,1.11072236,591.95,591.06,0.27493914]
[1743411660418,3.3482546,591.94,591.06,0.27493914]
[1743411660620,2.23750567,591.93,591.06,0.27493914]
[1743411660919,1.11072236,591.94,591.06,0.27493914]
[1743411661219,3.34831018,591.93,591.06,0.27493914]
[1743411661419,1.11072236,591.93,591.06,0.27493914]
[1743411661820,1.11072236,591.92,591.06,0.27493914]
[1743411662316,3.34855661,591.91,591.06,0.27493914]
[1743411662616,2.23783425,591.9,591.06,0.27493914]
[1743411662823,1.11072236,591.91,591.06,0.27493914]
[1743411663121,1.11072236,591.89,591.07,0.27486421]
[1743411663324,1.11072236,591.89,591.08,0.27486421]
[1743411663623,1.11072236,591.89,591.09,0.27486421]
[1743411663824,0.294191,591.9,591.09,0.27486421]
[1743411664020,0.294191,591.9,591.1,0.27486421]
[1743411664327,0.294191,591.9,591.11,0.27486421]
[1743411664524,2.23879879,591.89,591.06,0.27486421]
[1743411664724,1.1115275,591.88,591.07,0.27486421]
[1743411665024,1.1115275,591.88,591.08,0.2748545]
[1743411665224,0.294191,591.9,591.06,0.2748545]
[1743411665422,0.294191,591.9,591.07,0.2748545]
[1743411665626,0.294191,591.9,591.05,0.33838084]
[1743411665627,0.294191,591.9,591.06,0.2748545]
[1743411665826,1.11194059,591.89,591.07,0.2748545]
[1743411666026,1.40611542,591.89,591.06,0.2748545]
[1743411666223,1.40611542,591.89,591.07,0.2748545]
[1743411666422,0.29417483,591.89,591.07,0.2748545]
[1743411666627,0.29417483,591.89,591.08,0.2748545]
[1743411666820,0.29417483,591.89,591.06,0.2748545]
[1743411668826,1.11188572,592.01,591.06,0.2748545]
[1743411669026,0.29417732,591.88,591.06,0.2748545]
[1743411669426,1.11188572,592.0,591.06,0.2748545]
[1743411669628,1.11188572,591.99,591.06,0.2748545]
[1743411670225,2.23973381,592.02,591.06,0.2748545]
[1743411670426,1.38549369,592.04,591.06,0.2748545]
[1743411670623,1.40616931,592.01,591.06,0.2748545]
[1743411671028,1.11199199,592.0,591.06,0.2748545]
[1743411671533,3.35153625,591.99,591.06,0.2748545]
[1743411671728,2.23954426,591.98,591.06,0.2748545]
[1743411671931,2.23954426,591.97,591.06,0.2748545]
[1743411672234,7.34735164,591.96,591.06,0.2748545]
[1743411672426,6.16086311,591.95,591.06,0.2748545]
[1743411672731,5.82299674,591.94,591.01,0.2748545]
[1743411672931,5.81981647,591.93,591.01,0.2748545]
[1743411673136,6.81008332,591.92,591.01,0.2748545]
[1743411673336,0.99026685,591.9,591.01,0.2748545]
[1743411673635,0.99026685,591.84,591.01,0.2748545]
[1743411673834,5.81981647,591.83,591.0,1.545]
[1743411674030,5.81981647,591.82,591.0,1.545]
[1743411674230,5.81981647,591.81,591.0,1.545]
[1743411674438,4.96604454,591.8,591.0,1.545]
[1743411674640,4.96604454,591.79,591.0,1.545]
[1743411674840,5.81981647,591.78,591.0,1.545]
[1743411675035,5.81981647,591.77,591.0,1.545]
[1743411675239,5.81588806,591.76,591.0,1.545]
[1743411675441,5.81588806,591.75,591.0,1.545]
[1743411675636,5.81588806,591.74,591.0,1.545]
[1743411675837,3.60291511,591.73,591.0,1.545]
[1743411676141,2.23688002,591.72,591.01,0.27503137]
[1743411676441,2.23688002,591.71,591.01,0.27503137]
[1743411676640,2.23801063,591.7,591.01,0.27503137]
[1743411676845,2.23801063,591.69,591.01,0.27503137]
[1743411677046,0.85377193,591.68,591.01,0.27503137]
[1743411677243,1.11199199,591.68,591.01,0.27503137]
[1743411677742,1.7790989,591.94,591.01,0.27503137]
[1743411678047,0.2942507,591.75,591.01,0.27503137]
[1743411678240,5.8202313,591.92,591.01,0.27503137]
[1743411678444,2.2385505,591.91,591.01,0.27503137]
[1743411678640,2.2385505,591.9,591.02,0.27492384]
[1743411678842,3.35006847,591.89,591.03,0.27492384]
[1743411679046,0.85380901,591.88,591.01,0.27492384]
[1743411679347,0.2942196,591.9,591.0,1.545]
[1743411679348,1.11151797,591.87,591.02,0.27492384]
[1743411679540,1.11151797,591.87,591.01,0.27492384]
[1743411679747,1.11151797,591.86,591.01,0.27492384]
[1743411680142,0.2942196,591.9,591.01,0.27492384]
[1743411680740,5.36027635,591.97,591.0,1.545]
[1743411680945,1.11158411,591.89,591.01,0.27490948]
[1743411681142,1.38497058,591.88,591.01,0.27490948]
[1743411681342,3.18422501,591.94,591.01,0.27490948]
[1743411681540,1.11158411,591.87,591.01,0.27490948]
[1743411682144,1.91058411,591.86,591.01,0.27490948]
[1743411682448,1.91058411,591.86,591.02,0.6133075]
[1743411682650,1.91058411,591.86,591.03,0.27490948]
[1743411682948,0.799,591.86,591.03,0.27490948]
[1743411684247,0.29422084,591.85,591.03,0.27490948]
[1743411689247,0.29422084,591.85,591.03,1.37390948]
[1743411689451,0.29422084,591.85,591.04,0.27490948]
[1743411690248,0.29422084,591.85,591.03,1.099]
[1743411690447,0.29422084,591.85,591.04,0.27487939]
[1743411692654,1.11336935,591.84,591.04,0.27487939]
[1743411693051,1.40757651,591.84,591.04,0.27487939]
[1743411693451,1.11336935,591.83,591.04,0.27487939]
[1743411693852,1.11336935,591.82,591.04,0.27487939]
[1743411694451,0.29420716,591.84,591.04,0.27487939]
[1743411694850,1.1137928,591.83,591.04,0.27487939]